bitfinex-derivatives/quotes_BTCF0:USTF0_20250811
["timestamp","ask_amount","ask_price","bid_price","bid_amount"]
[1754888290191,1.0086875,122040.0,122030.0,0.67057694]
[1754888290386,1.1757975,122040.0,122030.0,0.67057694]
[1754888290587,1.1757175,122040.0,122030.0,0.75252064]
[1754888290782,0.00016899,122050.0,122040.0,0.240608]
[1754888290982,0.08200019,122050.0,122040.0,2.20708728]
[1754888291188,0.44491019,122050.0,122040.0,1.96537465]
[1754888291493,0.73502747,122050.0,122040.0,0.75334873]
[1754888291694,0.44491019,122050.0,122040.0,1.59778873]
[1754888291895,0.44491019,122050.0,122040.0,0.75334873]
[1754888292191,0.44491019,122050.0,122040.0,1.95850873]
[1754888293082,0.44491019,122050.0,122040.0,1.95842873]
[1754888293287,0.44491019,122050.0,122040.0,1.95814873]
[1754888293993,0.44491019,122050.0,122040.0,1.95798873]
[1754888293994,0.37650019,122050.0,122040.0,1.95798873]
[1754888294293,0.44491019,122050.0,122040.0,1.95798873]
[1754888294787,6.899e-05,122050.0,122040.0,2.45178859]
[1754888294984,6.899e-05,122050.0,122040.0,2.45158859]
[1754888295186,0.00206899,122050.0,122040.0,2.45158859]
[1754888295386,0.00206899,122050.0,122040.0,1.60810859]
[1754888295586,0.00206899,122050.0,122040.0,2.59761341]
[1754888295888,0.00206899,122050.0,122040.0,1.75429341]
[1754888296087,0.00206899,122050.0,122040.0,2.59753341]
[1754888296291,0.00206899,122050.0,122040.0,3.09753341]
[1754888296792,0.00206899,122050.0,122040.0,2.93366141]
[1754888297092,0.00206899,122050.0,122040.0,2.78747659]
[1754888299299,0.00206899,122050.0,122040.0,2.95134859]
[1754888299689,0.00206899,122050.0,122040.0,2.39822587]
[1754888300091,0.00206899,122050.0,122040.0,2.85057977]
[1754888300295,9e-08,122050.0,122040.0,2.85057977]
[1754888300494,9e-08,122050.0,122040.0,3.14069705]
[1754888300688,0.0001,122060.0,122040.0,2.52387663]
[1754888300900,0.0001,122060.0,122050.0,1.7209764]
[1754888301095,0.0001,122070.0,122050.0,1.8849355]
[1754888301393,0.4058,122070.0,122060.0,0.76273242]
[1754888301598,0.3608,122070.0,122060.0,0.84465722]
[1754888301794,0.3608,122070.0,122060.0,1.05960012]
[1754888301998,0.3608,122070.0,122060.0,0.4607134]
[1754888302199,0.045,122070.0,122060.0,1.38438658]
[1754888302502,0.0451,122070.0,122060.0,1.88448658]
[1754888302897,0.0451,122070.0,122060.0,1.04280658]
[1754888303095,0.33521728,122070.0,122060.0,1.88424658]
[1754888303290,0.33521728,122070.0,122060.0,2.14704658]
[1754888303695,0.29021728,122070.0,122060.0,2.14704658]
[1754888303902,0.69601728,122070.0,122060.0,1.30760658]
[1754888304091,0.33521728,122070.0,122060.0,1.30760658]
[1754888304291,0.0001,122070.0,122060.0,1.30960658]
[1754888304502,0.0001,122070.0,122060.0,2.15072658]
[1754888304697,0.0001,122070.0,122060.0,1.88792658]
[1754888304897,0.0001,122070.0,122060.0,1.88780658]
[1754888307206,0.0451,122070.0,122060.0,1.88780658]
[1754888307401,0.93326728,122070.0,122060.0,1.04680658]
[1754888307605,1.12324728,122070.0,122060.0,1.88764658]
[1754888307904,0.43904,122070.0,122060.0,1.04680658]
[1754888308106,0.69601728,122070.0,122060.0,1.88708658]
[1754888308503,0.3609,122070.0,122060.0,1.04680658]
[1754888308702,0.65101728,122070.0,122060.0,2.07590632]
[1754888309108,0.4059,122070.0,122060.0,2.07590632]
[1754888309306,0.69601728,122070.0,122060.0,2.07590632]
[1754888309503,0.69601728,122070.0,122060.0,1.93677054]
[1754888309504,0.0001,122070.0,122060.0,1.93677054]
[1754888309709,0.0001,122070.0,122060.0,3.23716744]
[1754888310004,0.0001,122070.0,122060.0,2.73303741]
[1754888310202,0.0001,122070.0,122060.0,3.58094062]
[1754888310909,0.0001,122070.0,122060.0,3.58394062]
[1754888310910,0.0011,122070.0,122060.0,3.58394062]
[1754888311321,0.29121728,122070.0,122060.0,3.39483671]
[1754888311723,0.0011,122070.0,122060.0,2.76920471]
[1754888311918,0.0011,122070.0,122060.0,3.05932199]
[1754888312121,0.10005352,122090.0,122070.0,0.53586028]
[1754888312419,0.10005352,122090.0,122070.0,0.79510758]
[1754888312618,0.08947359,122090.0,122080.0,0.0819111]
[1754888312822,0.37959087,122090.0,122080.0,0.9209511]
[1754888313012,0.37959087,122090.0,122080.0,1.13865359]
[1754888313212,0.31136267,122090.0,122080.0,0.34975359]
[1754888313413,0.31136267,122090.0,122080.0,1.22054708]
[1754888313613,0.31136267,122090.0,122080.0,0.38166708]
[1754888313912,0.31136267,122090.0,122080.0,1.72046708]
[1754888314309,0.31136267,122090.0,122080.0,1.72146708]
[1754888315320,0.31136267,122090.0,122080.0,0.88266708]
[1754888315622,0.98608808,122090.0,122080.0,1.72102708]
[1754888316216,0.6959708,122090.0,122080.0,1.72102708]
[1754888316514,0.6959708,122090.0,122080.0,1.86790756]
[1754888316911,0.6959708,122090.0,122080.0,1.86797618]
[1754888317110,0.6959708,122090.0,122080.0,1.93297035]
[1754888317315,0.6959708,122090.0,122080.0,1.93281035]
[1754888317515,0.6959708,122090.0,122080.0,1.09489035]
[1754888317712,0.6959708,122090.0,122080.0,1.93269035]
[1754888317920,0.6959708,122090.0,122080.0,1.09489035]
[1754888318118,0.6509708,122090.0,122080.0,1.78760987]
[1754888318820,0.7001108,122090.0,122080.0,1.78760987]
[1754888319721,1.41412808,122090.0,122080.0,0.94988987]
[1754888319917,1.67398803,122090.0,122080.0,0.94996445]
[1754888320122,2.49310803,122090.0,122080.0,0.85519803]
[1754888320313,2.41120363,122090.0,122080.0,0.85519803]
[1754888320618,0.7001108,122090.0,122080.0,1.78575312]
[1754888320818,0.7001108,122090.0,122080.0,0.94863312]
[1754888321017,0.7001108,122090.0,122080.0,1.78567312]
[1754888321217,0.8707408,122090.0,122080.0,1.78567312]
[1754888321623,1.1240108,122090.0,122080.0,1.78567312]
[1754888321924,1.1240108,122090.0,122080.0,0.94863312]
[1754888321925,2.49310803,122090.0,122080.0,0.94863312]
[1754888322810,2.41120363,122090.0,122080.0,0.94863312]
[1754888324111,2.31515248,122090.0,122080.0,0.94863312]
[1754888324316,2.49310803,122090.0,122080.0,0.85519803]
[1754888324712,2.49310803,122090.0,122080.0,0.34584764]
[1754888324914,3.32922803,122090.0,122080.0,0.63202788]
[1754888325118,2.49310803,122090.0,122080.0,0.63202788]
[1754888325314,2.49310803,122090.0,122080.0,0.35447761]
[1754888325514,3.32910803,122090.0,122080.0,0.35447761]
[1754888325723,0.3843211,122080.0,122070.0,0.3276598]
[1754888325925,2.48327643,122080.0,122070.0,0.3277598]
[1754888326225,2.48327643,122080.0,122070.0,0.76912974]
[1754888326433,2.40136533,122080.0,122070.0,1.26912974]
[1754888326730,2.48327643,122080.0,122070.0,1.26922787]
[1754888327022,2.40136533,122080.0,122070.0,1.26968664]
[1754888327218,2.48327643,122080.0,122070.0,1.02393914]
[1754888327426,2.48327643,122080.0,122070.0,0.59750655]
[1754888327725,3.31883643,122080.0,122070.0,0.80195036]
[1754888327921,2.48327643,122080.0,122070.0,0.65849111]
[1754888328124,3.31883643,122080.0,122070.0,0.65849111]
[1754888328421,2.73848187,122080.0,122070.0,0.28945974]
[1754888328620,3.31881643,122080.0,122070.0,0.43501899]
[1754888330222,1.82123077,122080.0,122070.0,0.28955974]
[1754888330431,2.11134805,122080.0,122070.0,0.28955974]
[1754888330923,2.11134805,122080.0,122070.0,0.30527974]
[1754888331123,2.94626805,122080.0,122070.0,0.30527974]
[1754888331320,0.82411522,122080.0,122070.0,0.30527974]
[1754888331523,0.40021522,122080.0,122070.0,0.40349254]
[1754888331823,0.40021522,122080.0,122070.0,2.02828982]
[1754888332017,0.41004,122080.0,122070.0,2.02828982]
[1754888332421,0.41004,122080.0,122070.0,2.01846982]
[1754888332731,0.41004,122080.0,122070.0,2.2168544]
[1754888333030,0.41004,122080.0,122070.0,1.92673712]
[1754888333922,0.41004,122080.0,122070.0,1.73817254]
[1754888334627,1.30201283,122080.0,122070.0,1.72771254]
[1754888335426,1.01189555,122080.0,122070.0,1.72771254]
[1754888335629,1.01189555,122080.0,122070.0,0.89367254]
[1754888335826,1.06338283,122080.0,122070.0,1.87365422]
[1754888336022,0.77326555,122080.0,122070.0,1.88347422]
[1754888336633,1.01189555,122080.0,122070.0,1.88347422]
[1754888337128,1.01189555,122080.0,122070.0,1.87365422]
[1754888337629,1.30201283,122080.0,122070.0,1.02401422]
[1754888337825,2.49320161,122080.0,122070.0,0.93562142]
[1754888338035,3.32644161,122080.0,122070.0,0.93562142]
[1754888338331,3.03632433,122080.0,122070.0,0.28955974]
[1754888338629,2.20308433,122080.0,122070.0,0.28955974]
[1754888338826,3.03628433,122080.0,122070.0,0.28955974]
[1754888339923,2.20308433,122080.0,122070.0,0.43562142]
[1754888340124,3.03466512,122080.0,122070.0,0.43552142]
[1754888340330,2.19175967,122080.0,122070.0,0.43552142]
[1754888340629,3.31463695,122080.0,122070.0,0.28945974]
[1754888340830,3.02451967,122080.0,122070.0,0.28945974]
[1754888341030,3.02451967,122080.0,122070.0,0.4792993]
[1754888341330,3.02461967,122080.0,122070.0,0.4793993]
[1754888341930,3.02449967,122080.0,122070.0,0.4793993]
[1754888342120,3.02449967,122080.0,122070.0,0.28955974]
[1754888343326,3.31461695,122080.0,122070.0,0.28955974]
[1754888343531,3.31433695,122080.0,122070.0,0.19647754]
[1754888343729,3.31433695,122080.0,122070.0,0.27839439]
[1754888344437,3.02421967,122080.0,122070.0,0.27847287]
[1754888344626,3.02421967,122080.0,122070.0,0.46831243]
[1754888345222,3.31423695,122080.0,122070.0,0.18991804]
[1754888345427,3.31423695,122080.0,122060.0,0.14625159]
[1754888345428,0.5549581,122070.0,122060.0,0.14625159]
[1754888345635,0.5549581,122070.0,122050.0,0.23393397]
[1754888345636,0.83843208,122060.0,122050.0,0.23393397]
[1754888345931,3.02794763,122060.0,122050.0,0.23393397]
[1754888346138,3.02794763,122060.0,122050.0,0.12214052]
[1754888346336,3.02794763,122060.0,122050.0,0.2860606]
[1754888346541,3.02804763,122060.0,122050.0,0.204229]
[1754888347430,2.19552763,122060.0,122050.0,0.204229]
[1754888347637,3.02488763,122060.0,122050.0,0.204229]
[1754888347838,2.19352763,122060.0,122050.0,0.204229]
[1754888348130,3.02472763,122060.0,122050.0,0.207229]
[1754888348330,3.02472763,122060.0,122050.0,0.210229]
[1754888348535,2.19352763,122060.0,122050.0,0.210229]
[1754888348734,3.02452763,122060.0,122050.0,0.160229]
[1754888349833,2.19352763,122060.0,122050.0,0.160229]
[1754888350026,0.5544116,122050.0,122040.0,0.31587197]
[1754888350230,0.0819383,122040.0,122030.0,0.32777]
[1754888350437,2.19293406,122040.0,122030.0,0.2915364]
[1754888350630,2.19293406,122040.0,122030.0,0.36904812]
[1754888350831,3.31361134,122040.0,122030.0,0.43912127]
[1754888351030,3.02349406,122040.0,122030.0,0.43918423]
[1754888351235,3.02347406,122040.0,122030.0,0.43928423]
[1754888351438,3.02347406,122040.0,122030.0,0.44128423]
[1754888351631,3.31359134,122040.0,122030.0,0.44128423]
[1754888352227,3.31359134,122040.0,122030.0,0.62932585]
[1754888352432,2.48315134,122040.0,122030.0,0.62932585]
[1754888352636,3.31331134,122040.0,122030.0,0.62932585]
[1754888352835,3.31331134,122040.0,122030.0,0.3953699]
[1754888353237,3.31339134,122040.0,122030.0,0.3953699]
[1754888353437,3.31339134,122040.0,122030.0,0.20532828]
[1754888353834,3.31339134,122040.0,122030.0,0.20732828]
[1754888354037,2.73315678,122040.0,122030.0,0.20732828]
[1754888354236,3.0731006,122040.0,122030.0,0.20732828]
[1754888354744,3.0731006,122040.0,122030.0,0.3973699]
[1754888355829,3.0731006,122040.0,122030.0,0.20732828]
[1754888356032,3.0731006,122040.0,122030.0,0.20532828]
[1754888356234,3.0761006,122040.0,122030.0,0.20632828]
[1754888359245,0.3894617,122020.0,122010.0,0.14682477]
[1754888359538,2.45780107,122020.0,122010.0,0.48543042]
[1754888359754,2.44820107,122020.0,122010.0,0.56738755]
[1754888359944,3.27700107,122020.0,122010.0,0.48542965]
[1754888360145,3.27700107,122020.0,122010.0,0.56738805]
[1754888360345,3.09914552,122020.0,122010.0,0.56759291]
[1754888360541,3.27710107,122020.0,122010.0,0.56759291]
[1754888360741,3.27710107,122020.0,122010.0,0.68261291]
[1754888360944,3.27710107,122020.0,122010.0,0.60165451]
[1754888361342,1.68993,122020.0,122010.0,0.82922261]
[1754888361749,2.51833,122020.0,122010.0,0.82922261]
[1754888362045,2.94715382,122020.0,122010.0,1.32922261]
[1754888362242,2.79002382,122020.0,122010.0,1.32922261]
[1754888362444,2.62803555,122020.0,122010.0,1.32922261]
[1754888362843,3.12510937,122020.0,122010.0,1.32922261]
[1754888363045,2.29670937,122020.0,122010.0,1.32922261]
[1754888363244,2.45,122020.0,122010.0,1.41636645]
[1754888363440,0.7217,122020.0,122010.0,1.80631027]
[1754888363745,0.3608,122050.0,122040.0,0.5130968]
[1754888363942,0.3608,122050.0,122040.0,0.55889239]
[1754888364141,0.3608,122050.0,122040.0,0.77321013]
[1754888364344,0.3593008,122050.0,122040.0,0.85516726]
[1754888365050,1.99940462,122050.0,122040.0,1.35516726]
[1754888365256,2.08143512,122050.0,122040.0,1.35526726]
[1754888365545,2.25495067,122050.0,122040.0,0.99441726]
[1754888365843,3.42233449,122050.0,122040.0,0.70666178]
[1754888366054,2.25495067,122050.0,122040.0,0.70666178]
[1754888366348,3.08231067,122050.0,122040.0,0.28859898]
[1754888366745,2.25495067,122050.0,122040.0,0.28859898]
[1754888366949,3.08227067,122050.0,122040.0,0.20666178]
[1754888367351,2.59489449,122050.0,122040.0,0.20666178]
[1754888367647,3.42193449,122050.0,122040.0,0.20666178]
[1754888367948,2.59489449,122050.0,122040.0,0.20666178]
[1754888368256,0.5544307,122020.0,122010.0,0.66048397]
[1754888368551,2.25997007,122020.0,122010.0,0.59205397]
[1754888368749,2.17041937,122020.0,122010.0,0.91023961]
[1754888369053,2.99721937,122020.0,122010.0,1.10034597]
[1754888369348,3.07917007,122020.0,122010.0,1.10034597]
[1754888369551,3.07907007,122020.0,122010.0,1.10044597]
[1754888370254,3.07907007,122020.0,122010.0,0.91040435]
[1754888370954,3.07907007,122020.0,122010.0,1.41040435]
[1754888371147,3.08107007,122020.0,122010.0,1.41040435]
[1754888371848,2.65873555,122020.0,122010.0,1.41040435]
[1754888372049,2.99867937,122020.0,122010.0,1.41040435]
[1754888379158,2.99967937,122020.0,122010.0,1.41040435]
[1754888379752,2.65973555,122020.0,122010.0,1.41040435]
[1754888379957,2.99967937,122020.0,122010.0,1.60069816]
[1754888381866,3.00067937,122020.0,122010.0,1.60069816]
[1754888382267,3.00067937,122020.0,122010.0,1.41040435]
[1754888382866,3.00067937,122020.0,122010.0,1.6443603]
[1754888383769,3.08007007,122020.0,122010.0,1.5718103]
[1754888384166,0.3649,122020.0,122010.0,1.12243141]
[1754888384372,0.3649,122020.0,122010.0,2.01952141]
[1754888384772,0.3649,122020.0,122010.0,1.78556546]
[1754888384972,0.0041,122020.0,122010.0,2.14636546]
[1754888385172,0.0041,122020.0,122010.0,1.37276546]
[1754888385373,0.0041,122020.0,122010.0,2.19604546]
[1754888385769,0.0011,122020.0,122010.0,2.19598072]
[1754888385966,1.29414555,122050.0,122040.0,0.2672673]
[1754888386171,2.45332937,122050.0,122040.0,0.55678756]
[1754888386365,1.95332937,122050.0,122040.0,0.76929142]
[1754888386671,1.95332937,122050.0,122040.0,0.85124855]
[1754888387266,1.95432937,122050.0,122040.0,1.04166309]
[1754888387465,1.95432937,122050.0,122040.0,1.04176309]
[1754888387466,1.95442937,122050.0,122040.0,1.04176309]
[1754888388165,1.95642937,122050.0,122040.0,1.04176309]
[1754888388361,2.05407937,122050.0,122040.0,1.04176309]
[1754888388565,2.05407937,122050.0,122040.0,0.85134855]
[1754888388766,2.05207937,122050.0,122040.0,0.85134855]
[1754888388968,2.05407937,122050.0,122040.0,0.85134855]
[1754888389867,1.88871369,122050.0,122040.0,0.48504579]
[1754888390073,2.70999369,122050.0,122040.0,0.39485161]
[1754888390274,1.41103382,122050.0,122040.0,0.66659891]
[1754888390572,1.19162369,122050.0,122040.0,0.39485161]
[1754888390770,3.19378369,122050.0,122040.0,0.39485161]
[1754888391075,3.19370369,122050.0,122040.0,0.20443707]
[1754888391576,2.37166369,122050.0,122040.0,0.20443707]
[1754888391969,3.19350369,122050.0,122040.0,0.20443707]
[1754888392169,3.19350369,122050.0,122040.0,0.39477545]
[1754888392877,0.331694,122030.0,122020.0,0.41035]
[1754888393076,1.67115337,122030.0,122020.0,0.41035]
[1754888393278,2.49039337,122030.0,122020.0,0.53366441]
[1754888393576,2.49039337,122030.0,122020.0,0.6156014]
[1754888393776,2.49039337,122030.0,122020.0,0.56614162]
[1754888393977,2.49033337,122030.0,122020.0,0.20744162]
[1754888394472,2.49033337,122030.0,122020.0,0.25699162]
[1754888395174,2.49033337,122030.0,122020.0,0.25799162]
[1754888395980,2.49133337,122030.0,122020.0,0.25599162]
[1754888396174,2.49133337,122030.0,122020.0,0.25499162]
[1754888396380,2.49433337,122030.0,122020.0,0.25599162]
[1754888397579,1.67293337,122030.0,122020.0,0.25599162]
[1754888397882,2.49353337,122030.0,122020.0,0.25599162]
[1754888398081,2.49345337,122030.0,122020.0,0.25599162]
[1754888398276,2.49341337,122030.0,122020.0,0.25599162]
[1754888398877,2.49341337,122030.0,122020.0,0.48994757]
[1754888399882,2.15346955,122030.0,122020.0,0.48994757]
[1754888400179,2.46450337,122030.0,122020.0,0.99712817]
[1754888400379,2.49345337,122030.0,122020.0,0.91517757]
[1754888400977,2.49345337,122030.0,122020.0,0.68122162]
[1754888401377,2.49345337,122030.0,122020.0,0.15124162]
[1754888401378,1.85577782,122030.0,122020.0,0.15124162]
[1754888401577,0.25992195,122000.0,121980.0,1.32252329]
[1754888401779,0.54226692,121990.0,121980.0,1.32252329]
[1754888401979,1.35246584,121990.0,121980.0,1.47587444]
[1754888402175,0.93054892,121990.0,121980.0,1.61249783]
[1754888402380,0.93050892,121990.0,121980.0,2.11249783]
[1754888402585,0.93050892,121990.0,121980.0,2.11260186]
[1754888402784,0.93060892,121990.0,121980.0,2.11470186]
[1754888403091,0.93060892,121990.0,121980.0,2.11704101]
[1754888403275,0.93060892,121990.0,121980.0,2.18377981]
[1754888403475,0.93060892,121990.0,121980.0,1.88871052]
[1754888403986,0.0001,121990.0,121980.0,2.18128062]
[1754888404282,0.89086,121990.0,121980.0,2.18128062]
[1754888404483,0.93973,121990.0,121980.0,2.18128062]
[1754888405186,1.27967382,121990.0,121980.0,2.18128062]
[1754888405375,1.27967382,121990.0,121980.0,2.17828062]
[1754888405780,1.28167382,121990.0,121980.0,1.88571052]
[1754888405986,0.12245,121990.0,121980.0,1.88371052]
[1754888406190,0.8211,121990.0,121980.0,1.88471052]
[1754888406485,0.0021,121990.0,121980.0,1.88471052]
[1754888406687,0.82106,121990.0,121980.0,1.88471052]
[1754888406882,0.93945,121990.0,121980.0,1.88471052]
[1754888408687,0.93945,121990.0,121980.0,2.11859678]
[1754888410688,0.93889,121990.0,121980.0,1.88471052]
[1754888410992,1.22885709,121990.0,121980.0,1.88471052]
[1754888411791,1.22885709,121990.0,121980.0,2.17728062]
[1754888411990,0.93869,121990.0,121980.0,2.17728062]
[1754888412184,0.93869,121990.0,121980.0,1.91448062]
[1754888413092,0.93829,121990.0,121980.0,1.91448062]
[1754888413493,1.0202601,121990.0,121980.0,1.91448062]
[1754888413791,1.14505264,121990.0,121980.0,1.62191052]
[1754888413990,0.85488555,121990.0,121980.0,1.62191052]
[1754888414392,1.67244555,121990.0,121980.0,1.53993202]
[1754888414592,1.75441565,121990.0,121980.0,1.53993202]
[1754888414791,1.75441565,121990.0,121980.0,1.46710287]
[1754888415087,1.22702274,121990.0,121980.0,1.29732398]
[1754888415291,1.96237264,121990.0,121980.0,1.44806078]
[1754888415486,1.75417555,121990.0,121980.0,1.44806078]
[1754888415686,2.04434264,121990.0,121980.0,1.44806078]
[1754888416492,2.04434264,121990.0,121980.0,1.14351078]
[1754888418393,2.04434264,121990.0,121980.0,1.06153398]
[1754888418588,1.22702264,121990.0,121980.0,1.06153398]
[1754888418793,2.04374264,121990.0,121980.0,1.06153398]
[1754888419097,2.04374264,121990.0,121980.0,1.14351068]
[1754888419392,2.03042862,121990.0,121980.0,1.14341068]
[1754888419593,1.21370862,121990.0,121980.0,1.14341068]
[1754888419795,1.94825862,121990.0,121980.0,1.14341068]
[1754888419990,1.65809153,121990.0,121980.0,1.43557397]
[1754888420295,2.03022862,121990.0,121980.0,1.43557397]
[1754888420495,2.03032862,121990.0,121980.0,1.43567397]
[1754888420695,1.74016153,121990.0,121980.0,1.43567397]
[1754888420990,2.03032862,121990.0,121980.0,1.43567397]
[1754888421797,1.74016153,121990.0,121980.0,1.43567397]
[1754888422099,2.02996862,121990.0,121980.0,1.06153398]
[1754888422290,2.02992862,121990.0,121980.0,1.06153398]
[1754888422596,2.02992862,121990.0,121980.0,0.63064398]
[1754888422797,2.02992862,121990.0,121980.0,0.66157398]
[1754888422992,2.02992862,121990.0,121980.0,0.77749398]
[1754888423193,1.21380862,121990.0,121980.0,0.50376476]
[1754888423397,1.57460862,121990.0,121980.0,0.45421476]
[1754888423598,1.57560862,121990.0,121980.0,0.49978476]
[1754888423800,2.39144862,121990.0,121980.0,0.49978476]
[1754888424192,2.39144862,121990.0,121980.0,0.45421476]
[1754888424693,2.39244862,121990.0,121980.0,0.45421476]
[1754888424894,2.39244862,121990.0,121980.0,0.49978476]
[1754888425193,2.39344862,121990.0,121980.0,0.26586398]
[1754888426594,2.39308862,121990.0,121980.0,0.26586398]
[1754888427194,2.10292153,121990.0,121980.0,0.26586398]
[1754888427391,2.39308862,121990.0,121980.0,0.26586398]
[1754888427795,2.10292153,121990.0,121980.0,0.26586398]
[1754888427995,2.39308862,121990.0,121980.0,0.26586398]
[1754888428402,2.39264862,121990.0,121980.0,0.26586398]
[1754888431010,2.39264862,121990.0,121980.0,0.77662118]
[1754888431011,2.39224912,121990.0,121980.0,0.77662118]
[1754888431197,1.41089598,121990.0,121980.0,1.22675715]
[1754888431901,0.0031,121990.0,121980.0,1.22675715]
[1754888432101,0.81762,121990.0,121980.0,1.22675715]
[1754888432300,0.81662,121990.0,121980.0,1.22675715]
[1754888432496,0.0021,121990.0,121980.0,1.72675715]
[1754888432702,0.81442,121990.0,121980.0,1.72675715]
[1754888432906,0.0011,121990.0,121980.0,1.72675715]
[1754888433294,0.8153,121990.0,121980.0,1.72675715]
[1754888433709,0.8153,121990.0,121980.0,1.98955715]
[1754888434004,0.3608,122020.0,122010.0,0.5563074]
[1754888434005,0.2823001,122020.0,122010.0,0.5563074]
[1754888434199,2.12090274,122020.0,122010.0,0.5563074]
[1754888434395,1.30686274,122020.0,122010.0,0.59803096]
[1754888434596,2.12090274,122020.0,122010.0,0.59803096]
[1754888434800,1.31487344,122020.0,122010.0,0.68000825]
[1754888435000,2.14459344,122020.0,122010.0,0.59544825]
[1754888435197,2.14465344,122020.0,122010.0,0.59554825]
[1754888435406,1.69157344,122020.0,122010.0,0.20575825]
[1754888435600,2.50837344,122020.0,122010.0,0.20675825]
[1754888436502,1.69457344,122020.0,122010.0,0.20675825]
[1754888436698,2.79838053,122020.0,122010.0,0.19095825]
[1754888437204,0.2728108,121990.0,121980.0,0.0819763]
[1754888437408,0.2728175,121980.0,121970.0,0.37549078]
[1754888437605,2.19320471,121980.0,121970.0,0.34275078]
[1754888437806,2.19320471,121980.0,121970.0,0.54733259]
[1754888438008,2.19320471,121980.0,121970.0,0.62931679]
[1754888438210,2.19308471,121980.0,121970.0,0.87423885]
[1754888438520,2.19318471,121980.0,121970.0,1.00811378]
[1754888438910,2.19318471,121980.0,121970.0,0.92612958]
[1754888439112,2.19302471,121980.0,121970.0,0.64636958]
[1754888439413,1.37986471,121980.0,121970.0,0.20478387]
[1754888439613,2.19694471,121980.0,121970.0,0.20478387]
[1754888439805,1.90677762,121980.0,121970.0,0.20478387]
[1754888440006,2.19694471,121980.0,121970.0,0.20478387]
[1754888440206,2.19694471,121980.0,121970.0,0.25140387]
[1754888441713,1.38186471,121980.0,121970.0,0.25140387]
[1754888441914,2.19658471,121980.0,121970.0,0.25140387]
[1754888442914,2.19658471,121980.0,121970.0,0.60505387]
[1754888443117,2.19658471,121980.0,121970.0,0.67273387]
[1754888443607,2.19658471,121980.0,121970.0,0.60505387]
[1754888445218,2.19658471,121980.0,121970.0,0.68703807]
[1754888445619,0.68665762,121980.0,121970.0,0.75471807]
[1754888445919,1.49873762,121980.0,121970.0,1.40568516]
[1754888446122,0.0041,121980.0,121970.0,1.40568516]
[1754888446318,1.0426775,121980.0,121970.0,1.49639062]
[1754888447215,1.0426775,121980.0,121970.0,1.99639062]
[1754888447517,0.8159,121980.0,121970.0,1.99639062]
[1754888448518,0.81574,121980.0,121970.0,1.99639062]
[1754888448719,0.0041,121980.0,121970.0,1.99639062]
[1754888448915,0.0031,121980.0,121970.0,1.99639062]
[1754888449225,0.81362,121980.0,121970.0,1.99639062]
[1754888449422,0.0011,121980.0,121970.0,1.99639062]
[1754888449624,0.0011,121980.0,121970.0,1.99739062]
[1754888450429,0.0001,121980.0,121970.0,1.99739062]
[1754888451325,0.53234,121990.0,121980.0,0.2235475]
[1754888451528,0.81112,121990.0,121980.0,1.36484549]
[1754888451827,0.79812,121990.0,121980.0,1.28673829]
[1754888452022,0.73312,121990.0,121980.0,1.65888267]
[1754888452434,0.71312,121990.0,121980.0,2.15888267]
[1754888452621,0.71422,121990.0,121980.0,2.15898267]
[1754888452931,0.7633,121990.0,121980.0,2.15898267]
[1754888453326,0.7363,121990.0,121980.0,1.86881558]
[1754888453527,0.88094,121990.0,121980.0,1.86881558]
[1754888454132,0.88094,121990.0,121980.0,2.15898267]
[1754888455131,0.88094,121990.0,121980.0,1.86881558]
[1754888455432,0.88094,121990.0,121980.0,2.15898267]
[1754888455626,0.88086,121990.0,121980.0,2.15898267]
[1754888456530,0.88054,121990.0,121980.0,2.15898267]
[1754888456934,0.07018,121990.0,121980.0,2.15898267]
[1754888457123,1.0387908,121990.0,121980.0,1.86881558]
[1754888457327,1.0387908,121990.0,121980.0,2.13161558]
[1754888457531,0.95682,121990.0,121980.0,2.13161558]
[1754888457928,1.0387908,121990.0,121980.0,2.13161558]
[1754888458130,1.0850308,121990.0,121980.0,2.13161558]
[1754888458332,0.2749108,121990.0,121980.0,2.13161558]
[1754888458633,1.0847908,121990.0,121980.0,2.13161558]
[1754888458934,0.73089092,121990.0,121980.0,2.04963808]
[1754888459134,1.02105801,121990.0,121980.0,1.87913694]
[1754888459436,1.83081801,121990.0,121980.0,1.87913694]
[1754888459623,1.02105801,121990.0,121980.0,1.79715944]
[1754888459934,1.83073801,121990.0,121980.0,1.36867944]
[1754888460434,1.54057092,121990.0,121980.0,0.86867944]
[1754888460623,1.54057092,121990.0,121980.0,0.46840944]
[1754888460624,1.38185801,121990.0,121980.0,0.46840944]
[1754888460825,2.19137801,121990.0,121980.0,0.46840944]
[1754888461539,2.19133801,121990.0,121980.0,0.46840944]
[1754888461730,1.38185801,121990.0,121980.0,0.46840944]
[1754888462032,2.19117801,121990.0,121980.0,0.46840944]
[1754888462738,1.38185801,121990.0,121980.0,0.46840944]
[1754888463033,2.19113801,121990.0,121980.0,0.46840944]
[1754888463338,2.19113801,121990.0,121980.0,0.20560944]
[1754888469243,1.38185801,121990.0,121980.0,0.25499944]
[1754888469441,2.18997801,121990.0,121980.0,0.25499944]
[1754888469640,1.38185801,121990.0,121980.0,0.42876944]
[1754888470446,2.18989801,121990.0,121980.0,0.42876944]
[1754888471344,2.18989801,121990.0,121980.0,0.25499944]
[1754888472135,2.19089801,121990.0,121980.0,0.25499944]
[1754888472439,1.38285801,121990.0,121980.0,0.20560944]
[1754888472642,2.19049801,121990.0,121980.0,0.20560944]
[1754888472841,2.19145801,121990.0,121980.0,0.20560944]
[1754888473243,1.38385801,121990.0,121980.0,0.20560944]
[1754888473540,2.19141801,121990.0,121980.0,0.20560944]
[1754888475044,1.38385801,121990.0,121980.0,0.20560944]
[1754888475240,2.19133801,121990.0,121980.0,0.20560944]
[1754888476750,1.38385801,121990.0,121980.0,0.20560944]
[1754888477049,2.19109801,121990.0,121980.0,0.20560944]
[1754888477851,2.19081801,121990.0,121980.0,0.20560944]
[1754888478651,2.19065801,121990.0,121980.0,0.20560944]
[1754888479346,1.09369092,121990.0,121980.0,0.25499944]
[1754888479553,2.19053801,121990.0,121980.0,0.25499944]
[1754888480847,1.38385801,121990.0,121980.0,0.25499944]
[1754888481148,1.38385801,121990.0,121980.0,0.69278944]
[1754888481353,2.19013801,121990.0,121980.0,0.69278944]
[1754888481553,2.19005801,121990.0,121980.0,0.69278944]
[1754888481756,2.19009801,121990.0,121980.0,0.69278944]
[1754888482053,1.38385801,121990.0,121980.0,0.69278944]
[1754888482249,2.18997801,121990.0,121980.0,0.69278944]
[1754888482448,1.38385801,121990.0,121980.0,0.69278944]
[1754888482654,1.38385801,121990.0,121980.0,0.62218944]
[1754888483152,2.18989801,121990.0,121980.0,0.62218944]
[1754888484850,2.18989801,121990.0,121980.0,0.77476694]
[1754888484851,0.61857092,121990.0,121980.0,0.77476694]
[1754888485048,1.83256801,121990.0,121980.0,0.77476694]
[1754888485253,2.19336801,121990.0,121980.0,0.77476694]
[1754888485453,2.19336801,121990.0,121980.0,0.69278944]
[1754888485753,2.19324801,121990.0,121980.0,0.69278944]